Workbook

Sheet Лист 1 - 7-11
A1: Школа | C1: МКОУ "Куминовская ООШ" | F1: Утвердил: | G1: должность | H1: директор
A2: Типовое примерное меню приготавливаемых блюд | G2: фамилия | H2: Крутикова С.В.
A3: Возрастная категория | E3: 7-11 лет | G3: дата | H3: 2 | I3: 9 | J3: 2025
H4: день | I4: месяц | J4: год
A5: Неделя | B5: День недели | C5: Прием пищи | D5: Раздел меню | E5: Блюда | F5: Вес блюда, г | G5: Белки | H5: Жиры | I5: Углеводы | J5: Калорийность | K5: № рецептуры | L5: Цена
A6: 1 | B6: 1 | C6: Завтрак | D6: гор.блюдо | E6: Рис припущенный | F6: 150 | G6: 3.6 | H6: 6 | I6: 37.05 | J6: 216.6 | K6: 512 | L6: 13.1
E7: Котлета рыбная | F7: 80 | G7: 10.4 | H7: 7.04 | I7: 12.16 | J7: 153.6 | K7: 389 | L7: 28.52
D8: гор.напиток | E8: Какао с молоком | F8: 200 | G8: 4.9 | H8: 5 | I8: 32.5 | J8: 194.6 | K8: 693 | L8: 9.7
D9: хлеб | E9: Хлеб витаминизированный | F9: 30 | G9: 2.28 | H9: 0.24 | I9: 14.5 | J9: 69.28 | K9: пром | L9: 2.58
D10: фрукты | E10: Апельсин | F10: 100 | G10: 0.42 | H10: 0.14 | I10: 6.08 | J10: 32.73 | K10: пром | L10: 23
E11: Бутерброд с джемом | F11: 40 | G11: 1.7 | H11: 2.8 | I11: 19.7 | J11: 110.8 | K11: 2 | L11: 9.43
D13: итого | F13: =SUM(F6:F12) -> 600 | G13: =SUM(G6:G12) -> 23.3 | H13: 21.22 | I13: 121.99 | J13: 624.01 | L13: =SUM(L6:L12) -> 86.33
A14: =A6 -> 1 | B14: =B6 -> 1 | C14: Обед | D14: закуска | E14: Салат из свежей капусты | F14: 60 | G14: 0.84 | H14: 3.06 | I14: 5.34 | J14: 52.26 | K14: 43 | L14: 3.68
D15: 1 блюдо | E15: Суп молочный с макаронными изделиями | F15: 200 | G15: 5.6 | H15: 6.32 | I15: 19.76 | J15: 158.32 | K15: 160 | L15: 8.43
D16: 2 блюдо | E16: Кура отварная | F16: 80 | G16: 12.56 | H16: 7.12 | I16: 0.32 | J16: 115.6 | K16: 487 | L16: 31.76
D17: гарнир | E17: Пюре картофельное | F17: 150 | G17: 3.15 | H17: 6.75 | I17: 21.9 | J17: 160.95 | K17: 520 | L17: 11.46
D18: напиток | E18: Сок фруктовый | F18: 200 | G18: 1 | H18: 0 | I18: 21.2 | J18: 88.8 | K18: пром | L18: 18
D19: хлеб бел. | E19: Хлеб витаминизированный | F19: 30 | G19: 2.28 | H19: 0.24 | I19: 14.5 | J19: 69.28 | K19: пром | L19: 2.58
D20: хлеб черн. | E20: Хлеб черный | F20: 20 | G20: 1.4 | H20: 0.21 | I20: 9.3 | J20: 44.69 | K20: пром | L20: 1.72
D23: итого | F23: =SUM(F14:F22) -> 740 | G23: =SUM(G14:G22) -> 26.83 | H23: 23.7 | I23: 92.32 | J23: 689.9 | L23: =SUM(L14:L22) -> 77.63
A24: =A6 -> 1 | B24: =B6 -> 1 | C24: Итого за день: | F24: =F13+F23 -> 1340 | G24: =G13+G23 -> 50.13 | H24: 44.92 | I24: 214.31 | J24: 1313.91 | L24: =L13+L23 -> 163.96
A25: 1 | B25: 2 | C25: Завтрак | D25: гор.блюдо | E25: Каша гречневая рассыпчатая | F25: 150 | G25: 8.4 | H25: 10.8 | I25: 41.25 | J25: 295.8 | K25: 508 | L25: 12.13
E26: Печень по-строгановски | F26: 80 | G26: 10.88 | H26: 10.88 | I26: 3.12 | J26: 153.92 | K26: 431 | L26: 30.25
D27: гор.напиток | E27: Витаминный напиток "Витошка" | F27: 200 | G27: 0 | H27: 0 | I27: 18.6 | J27: 74.4 | K27: пром | L27: 8.6
D28: хлеб | E28: Хлеб витаминизированный | F28: 30 | G28: 2.28 | H28: 0.24 | I28: 14.5 | J28: 69.28 | K28: пром | L28: 2.58
D29: фрукты
D32: итого | F32: =SUM(F25:F31) -> 460 | G32: =SUM(G25:G31) -> 21.56 | H32: 21.92 | I32: 77.47 | J32: 593.4 | L32: 53.56
A33: =A25 -> 1 | B33: =B25 -> 2 | C33: Обед | D33: закуска
D34: 1 блюдо | E34: Рассольник ленинградский с мясом птицы со сметаной | F34: 200 | G34: 5.56 | H34: 5.28 | I34: 16.16 | J34: 135.2 | K34: 132 | L34: 18.45
D35: 2 блюдо | E35: Котлета мясная | F35: 80 | G35: 12.72 | H35: 11.52 | I35: 12.8 | J35: 205.76 | K35: 451 | L35: 52.53
D36: гарнир | E36: Макароны отварные с маслом | F36: 150 | G36: 5.25 | H36: 6.15 | I36: 35.25 | J36: 217.35 | K36: 516 | L36: 7.45
D37: напиток | E37: Компот из сухофруктов | F37: 200 | G37: 0.6 | H37: 0 | I37: 31.4 | J37: 128 | K37: 639 | L37: 4.2
D38: хлеб бел. | E38: Хлеб витаминизированный | F38: 30 | G38: 2.28 | H38: 0.24 | I38: 14.5 | J38: 69.28 | K38: пром | L38: 2.58
D39: хлеб черн. | E39: Хлеб черный | F39: 20 | G39: 1.4 | H39: 0.21 | I39: 9.3 | J39: 44.69 | K39: пром | L39: 1.72
D42: итого | F42: =SUM(F33:F41) -> 680 | G42: =SUM(G33:G41) -> 27.81 | H42: 23.4 | I42: 119.41 | J42: 800.28 | L42: 86.93
A43: =A25 -> 1 | B43: =B25 -> 2 | C43: Итого за день: | F43: =F32+F42 -> 1140 | G43: =G32+G42 -> 49.37 | H43: 45.32 | I43: 196.88 | J43: 1393.68 | L43: 140.49
A44: 1 | B44: 3 | C44: Завтрак | D44: гор.блюдо | E44: Запеканка творожная со сгущенным молоком | F44: 150 | G44: 22.5 | H44: 19.95 | I44: 20.55 | J44: 351.75 | K44: 366 | L44: 60.88
D46: гор.напиток | E46: Биойогурт | F46: 200 | G46: 5.8 | H46: 5 | I46: 22 | J46: 156.2 | K46: пром | L46: 20.6
D47: хлеб | E47: Хлеб витаминизированный | F47: 30 | G47: 2.28 | H47: 0.24 | I47: 14.5 | J47: 69.28 | K47: пром | L47: 2.58
D48: фрукты | E48: Сок фруктовый | F48: 200 | G48: 1 | H48: 0 | I48: 21.2 | J48: 88.8 | K48: пром | L48: 18
E49: Слойка сливочная | F49: 70 | G49: 6.3 | H49: 11.9 | I49: 38.5 | J49: 280 | K49: пром | L49: 30
D51: итого | F51: =SUM(F44:F50) -> 650 | G51: =SUM(G44:G50) -> 37.88 | H51: 37.09 | I51: 116.75 | J51: 946.03 | L51: 132.06
A52: =A44 -> 1 | B52: =B44 -> 3 | C52: Обед | D52: закуска
D53: 1 блюдо | E53: Щи из свежей капусты с мясом птицы со сметаной | F53: 200 | G53: 4.96 | H53: 5.12 | I53: 8.08 | J53: 98.24 | K53: 124 | L53: 14.88
D54: 2 блюдо | E54: Жаркое по-домашнему | F54: 200 | G54: 17.8 | H54: 9.8 | I54: 21.6 | J54: 245.8 | K54: 436 | L54: 71.1
D55: гарнир
D56: напиток | E56: Чай с лимоном | F56: 200 | G56: 0.3 | H56: 0 | I56: 15.2 | J56: 62 | K56: 686 | L56: 4.34
D57: хлеб бел. | E57: Хлеб витаминизированный | F57: 30 | G57: 2.28 | H57: 0.24 | I57: 14.5 | J57: 69.28 | K57: пром | L57: 2.58
D58: хлеб черн. | E58: Хлеб черный | F58: 20 | G58: 1.4 | H58: 0.21 | I58: 9.3 | J58: 44.69 | K58: пром | L58: 1.72
D61: итого | F61: =SUM(F52:F60) -> 650 | G61: =SUM(G52:G60) -> 26.74 | H61: 15.37 | I61: 68.68 | J61: 520.01 | L61: 94.62
A62: =A44 -> 1 | B62: =B44 -> 3 | C62: Итого за день: | F62: =F51+F61 -> 1300 | G62: =G51+G61 -> 64.62 | H62: 52.46 | I62: 185.43 | J62: 1466.04 | L62: 226.68
A63: 1 | B63: 4 | C63: Завтрак | D63: гор.блюдо | E63: Плов из птицы | F63: 200 | G63: 16.2 | H63: 15.8 | I63: 36.2 | J63: 351.8 | K63: 492 | L63: 49.25
D65: гор.напиток | E65: Кофейный напиток | F65: 200 | G65: 2.5 | H65: 3.6 | I65: 28.7 | J65: 157.2 | K65: 692 | L65: 7.15
D66: хлеб | E66: Хлеб витаминизированный | F66: 30 | G66: 2.28 | H66: 0.24 | I66: 14.5 | J66: 69.28 | K66: пром | L66: 2.52
D67: фрукты
E68: Бутерброд с маслом | F68: 25 | G68: 1.1 | H68: 9 | I68: 6.8 | J68: 112.6 | K68: 1 | L68: 9.69
D70: итого | F70: =SUM(F63:F69) -> 455 | G70: =SUM(G63:G69) -> 22.08 | H70: 28.64 | I70: 86.2 | J70: 690.88 | L70: 68.61
A71: =A63 -> 1 | B71: =B63 -> 4 | C71: Обед | D71: закуска | E71: Салат из свежих помидор | F71: 60 | G71: 0.54 | H71: 4.26 | I71: 2.34 | J71: 49.86 | K71: 19 | L71: 13.71
D72: 1 блюдо | E72: Суп-пюре из картофеля с гренками | F72: 200 | G72: 3.2 | H72: 4.88 | I72: 17.12 | J72: 125.2 | K72: 171 | L72: 11.33
D73: 2 блюдо | E73: Гуляш из говядины | F73: 80 | G73: 11.12 | H73: 5.2 | I73: 3.2 | J73: 104.08 | K73: 437 | L73: 54.57
D74: гарнир | E74: Каша гречневая рассыпчатая | F74: 150 | G74: 8.4 | H74: 10.8 | I74: 41.25 | J74: 295.8 | K74: 508 | L74: 12.13
D75: напиток | E75: Компот из сухофруктов | F75: 200 | G75: 0.6 | H75: 0 | I75: 31.4 | J75: 128 | K75: 639 | L75: 4.2
D76: хлеб бел. | E76: Хлеб витаминизированный | F76: 30 | G76: 2.28 | H76: 0.24 | I76: 14.5 | J76: 69.28 | K76: пром | L76: 2.58
D77: хлеб черн. | E77: Хлеб черный | F77: 20 | G77: 1.4 | H77: 0.21 | I77: 9.3 | J77: 44.69 | K77: пром | L77: 1.72
D80: итого | F80: =SUM(F71:F79) -> 740 | G80: =SUM(G71:G79) -> 27.54 | H80: 25.59 | I80: 119.11 | J80: 816.91 | L80: 100.24
A81: =A63 -> 1 | B81: =B63 -> 4 | C81: Итого за день: | F81: =F70+F80 -> 1195 | G81: =G70+G80 -> 49.62 | H81: 54.23 | I81: 205.31 | J81: 1507.79 | L81: 168.85
A82: 1 | B82: 5 | C82: Завтрак | D82: гор.блюдо | E82: Каша геркулесовая вязкая на молоке с маслом | F82: 150 | G82: 4.2 | H82: 7.8 | I82: 18.8 | J82: 166.2 | K82: 302 | L82: 15.36
D84: гор.напиток | E84: Чай с лимоном | F84: 200 | G84: 0.3 | H84: 0 | I84: 15.2 | J84: 62 | K84: 686 | L84: 4.34
D85: хлеб | E85: Хлеб витаминизированный | F85: 30 | G85: 2.28 | H85: 0.24 | I85: 14.5 | J85: 69.28 | K85: пром | L85: 2.58
D86: фрукты | E86: Яблоко | F86: 100 | G86: 0.35 | H86: 0 | I86: 9.91 | J86: 41.04 | K86: пром | L86: 16
E87: Бутерброд с сыром | F87: 35 | G87: 5.2 | H87: 7.5 | I87: 7.3 | J87: 117.5 | K87: 3 | L87: 18.99
D89: итого | F89: =SUM(F82:F88) -> 515 | G89: =SUM(G82:G88) -> 12.33 | H89: 15.54 | I89: 65.71 | J89: 456.02 | L89: 57.27
A90: =A82 -> 1 | B90: =B82 -> 5 | C90: Обед | D90: закуска
D91: 1 блюдо | E91: Суп крестьянский с мясо птицы со сметаной | F91: 200 | G91: 5.44 | H91: 5.92 | I91: 11.52 | J91: 121.12 | K91: 134 | L91: 14.58
D92: 2 блюдо | E92: Запеканка картофельная с мясом | F92: 150 | G92: 15 | H92: 14.7 | I92: 24.75 | J92: 291.3 | K92: 478 | L92: 40.25
D93: гарнир | E93: Капуста тушеная | F93: 80 | G93: 2 | H93: 3.68 | I93: 8.56 | J93: 75.36 | K93: 534 | L93: 10.99
D94: напиток | E94: Кисель из плодово-ягодного концентрата | F94: 200 | G94: 0 | H94: 0 | I94: 30.6 | J94: 122.4 | K94: 648 | L94: 6.43
D95: хлеб бел. | E95: Хлеб витаминизированный | F95: 30 | G95: 2.28 | H95: 0.24 | I95: 14.5 | J95: 69.28 | K95: пром | L95: 2.58
D96: хлеб черн. | E96: Хлеб черный | F96: 20 | G96: 1.4 | H96: 0.21 | I96: 9.3 | J96: 44.69 | K96: пром | L96: 1.72
D99: итого | F99: =SUM(F90:F98) -> 680 | G99: =SUM(G90:G98) -> 26.12 | H99: 24.75 | I99: 99.23 | J99: 724.15 | L99: 76.55
A100: =A82 -> 1 | B100: =B82 -> 5 | C100: Итого за день: | F100: =F89+F99 -> 1195 | G100: =G89+G99 -> 38.45 | H100: 40.29 | I100: 164.94 | J100: 1180.17 | L100: 133.82
A101: 2 | B101: 1 | C101: Завтрак | D101: гор.блюдо | E101: Суфле "Рыбка" | F101: 180 | G101: 25.08 | H101: 14.63 | I101: 17.25 | J101: 300.99 | K101: ВРО 43 | L101: 54.27
D103: гор.напиток | E103: Какао с молоком | F103: 200 | G103: 4.9 | H103: 5 | I103: 32.5 | J103: 194.6 | K103: 693 | L103: 9.7
D104: хлеб | E104: Хлеб витаминизированный | F104: 30 | G104: 2.28 | H104: 0.24 | I104: 14.5 | J104: 69.28 | K104: пром | L104: 2.58
D105: фрукты | E105: Банан | F105: 100 | G105: 0.9 | H105: 0.3 | I105: 4.8 | J105: 30.9 | K105: пром | L105: 23
E106: Бутерброд с джемом | F106: 40 | G106: 1.7 | H106: 2.8 | I106: 19.7 | J106: 110.8 | K106: 2 | L106: 9.43
D108: итого | F108: =SUM(F101:F107) -> 550 | G108: =SUM(G101:G107) -> 34.86 | H108: 22.97 | I108: 88.75 | J108: 706.57 | L108: =SUM(L101:L107) -> 98.98
A109: =A101 -> 2 | B109: =B101 -> 1 | C109: Обед | D109: закуска | E109: Салат из свежей капусты | F109: 60 | G109: 0.84 | H109: 3.06 | I109: 5.34 | J109: 52.26 | K109: 43 | L109: 3.68
D110: 1 блюдо | E110: Суп с макаронными изделиями | F110: 200 | G110: 5.68 | H110: 3.68 | I110: 16.88 | J110: 123.36 | K110: 140 | L110: 10.65
D111: 2 блюдо | E111: Котлета мясная | F111: 80 | G111: 12.72 | H111: 11.52 | I111: 12.8 | J111: 205.76 | K111: 451 | L111: 52.93
D112: гарнир | E112: Пюре картофельное | F112: 150 | G112: 3.15 | H112: 6.75 | I112: 21.9 | J112: 160.95 | K112: 520 | L112: 11.46
D113: напиток | E113: Сок фруктовый | F113: 200 | G113: 1 | H113: 0 | I113: 21.2 | J113: 88.8 | K113: пром | L113: 18
D114: хлеб бел. | E114: Хлеб витаминизированный | F114: 30 | G114: 2.28 | H114: 0.24 | I114: 14.5 | J114: 69.28 | K114: пром | L114: 2.58
D115: хлеб черн. | E115: Хлеб черный | F115: 20 | G115: 1.4 | H115: 0.21 | I115: 9.3 | J115: 44.69 | K115: пром | L115: 1.72
D118: итого | F118: =SUM(F109:F117) -> 740 | G118: =SUM(G109:G117) -> 27.07 | H118: 25.46 | I118: 101.92 | J118: 745.1 | L118: =SUM(L109:L117) -> 101.02
A119: =A101 -> 2 | B119: =B101 -> 1 | C119: Итого за день: | F119: =F108+F118 -> 1290 | G119: =G108+G118 -> 61.93 | H119: 48.43 | I119: 190.67 | J119: 1451.67 | L119: 200
A120: 2 | B120: 2 | C120: Завтрак | D120: гор.блюдо | E120: Макароны отварные с маслом | F120: 150 | G120: 5.25 | H120: 6.15 | I120: 35.25 | J120: 217.35 | K120: 516 | L120: 7.45
E121: Биточки мясные | F121: 80 | G121: 12.72 | H121: 11.52 | I121: 12.8 | J121: 205.76 | K121: 451 | L121: 52.93
D122: гор.напиток | E122: Кисель "Витошка" | F122: 200 | G122: 0 | H122: 0 | I122: 24 | J122: 96 | K122: пром | L122: 10
D123: хлеб | E123: Хлеб витаминизированный | F123: 30 | G123: 2.28 | H123: 0.24 | I123: 14.5 | J123: 69.28 | K123: пром | L123: 2.58
D124: фрукты
D127: итого | F127: =SUM(F120:F126) -> 460 | G127: =SUM(G120:G126) -> 20.25 | H127: 17.91 | I127: 86.55 | J127: 588.39 | L127: =SUM(L120:L126) -> 72.96
A128: =A120 -> 2 | B128: =B120 -> 2 | C128: Обед | D128: закуска
D129: 1 блюдо | E129: Суп овощной с мясом птицы, со сметаной | F129: 200 | G129: 5.12 | H129: 5.2 | I129: 10 | J129: 107.28 | K129: 135 | L129: 17.44
D130: 2 блюдо | E130: Запеканка творожная со сгущенным молоком | F130: 150 | G130: 22.5 | H130: 19.95 | I130: 20.55 | J130: 351.75 | K130: 366 | L130: 60.88
D131: гарнир | E131: Яйцо вареное | F131: 40 | G131: 5.1 | H131: 4.6 | I131: 0.3 | J131: 63 | K131: 337 | L131: 10
D132: напиток | E132: Компот из сухофруктов | F132: 200 | G132: 0.6 | H132: 0 | I132: 31.4 | J132: 128 | K132: 639 | L132: 4.2
D133: хлеб бел. | E133: Хлеб витаминизированный | F133: 30 | G133: 2.28 | H133: 0.24 | I133: 14.5 | J133: 69.28 | K133: пром | L133: 2.58
D134: хлеб черн. | E134: Хлеб черный | F134: 20 | G134: 1.4 | H134: 0.21 | I134: 9.3 | J134: 44.69 | K134: пром | L134: 1.72
D137: итого | F137: =SUM(F128:F136) -> 640 | G137: =SUM(G128:G136) -> 37 | H137: 30.2 | I137: 86.05 | J137: 764 | L137: =SUM(L128:L136) -> 96.82
A138: =A120 -> 2 | B138: =B120 -> 2 | C138: Итого за день: | F138: =F127+F137 -> 1100 | G138: =G127+G137 -> 57.25 | H138: 48.11 | I138: 172.6 | J138: 1352.39 | L138: 169.78
A139: 2 | B139: 3 | C139: Завтрак | D139: гор.блюдо | E139: Жаркое по-домашнему | F139: 200 | G139: 17.8 | H139: 9.8 | I139: 21.6 | J139: 245.8 | K139: 436 | L139: 71.1
D141: гор.напиток | E141: Биойогурт | F141: 200 | G141: 5.8 | H141: 5 | I141: 22 | J141: 156.2 | K141: пром | L141: 20.6
D142: хлеб | E142: Хлеб витаминизированный | F142: 30 | G142: 2.28 | H142: 0.24 | I142: 14.5 | J142: 69.28 | K142: пром | L142: 2.58
D143: фрукты | E143: Сок фруктовый | F143: 200 | G143: 1 | H143: 0 | I143: 21.2 | J143: 88.8 | K143: пром | L143: 18
E144: Слойка сливочная | F144: 70 | G144: 6.3 | H144: 11.9 | I144: 38.5 | J144: 280 | K144: пром | L144: 30
D146: итого | F146: =SUM(F139:F145) -> 700 | G146: =SUM(G139:G145) -> 33.18 | H146: 26.94 | I146: 117.8 | J146: 840.08 | L146: =SUM(L139:L145) -> 142.28
A147: =A139 -> 2 | B147: =B139 -> 3 | C147: Обед | D147: закуска
D148: 1 блюдо | E148: Суп рисовый с картофелем, с мясом птицы | F148: 200 | G148: 4.8 | H148: 5.84 | I148: 13.28 | J148: 124.88 | K148: 138 | L148: 16.51
D149: 2 блюдо | E149: Гуляш из говядины | F149: 80 | G149: 11.12 | H149: 5.2 | I149: 3.2 | J149: 104.08 | K149: 437 | L149: 54.57
D150: гарнир | E150: Каша гречневая рассыпчатая | F150: 150 | G150: 8.4 | H150: 10.8 | I150: 41.25 | J150: 295.8 | K150: 508 | L150: 12.13
D151: напиток | E151: Чай с лимоном | F151: 200 | G151: 0.3 | H151: 0 | I151: 15.2 | J151: 62 | K151: 686 | L151: 4.34
D152: хлеб бел. | E152: Хлеб витаминизированный | F152: 30 | G152: 2.28 | H152: 0.24 | I152: 14.5 | J152: 69.28 | K152: пром | L152: 2.58
D153: хлеб черн. | E153: Хлеб черный | F153: 20 | G153: 1.4 | H153: 0.21 | I153: 9.3 | J153: 44.69 | K153: пром | L153: 1.72
D156: итого | F156: =SUM(F147:F155) -> 680 | G156: =SUM(G147:G155) -> 28.3 | H156: 22.29 | I156: 96.73 | J156: 700.73 | L156: =SUM(L147:L155) -> 91.85
A157: =A139 -> 2 | B157: =B139 -> 3 | C157: Итого за день: | F157: =F146+F156 -> 1380 | G157: =G146+G156 -> 61.48 | H157: 49.23 | I157: 214.53 | J157: 1540.81 | L157: 234.13
A158: 2 | B158: 4 | C158: Завтрак | D158: гор.блюдо | E158: Омлет натуральный | F158: 140 | G158: 14 | H158: 23.38 | I158: 2.66 | J158: 277.06 | K158: 340 | L158: 35.76
E159: Кура отварная | F159: 80 | G159: 12.56 | H159: 7.12 | I159: 0.32 | J159: 115.6 | K159: 487 | L159: 31.76
D160: гор.напиток | E160: Кофейный напиток | F160: 200 | G160: 2.5 | H160: 3.6 | I160: 28.7 | J160: 157.2 | K160: 692 | L160: 7.15
D161: хлеб | E161: Хлеб витаминизированный | F161: 30 | G161: 2.28 | H161: 0.24 | I161: 14.5 | J161: 69.28 | K161: пром | L161: 2.58
D162: фрукты
D165: итого | F165: =SUM(F158:F164) -> 450 | G165: =SUM(G158:G164) -> 31.34 | H165: 34.34 | I165: 46.18 | J165: 619.14 | L165: =SUM(L158:L164) -> 77.25
A166: =A158 -> 2 | B166: =B158 -> 4 | C166: Обед | D166: закуска | E166: Салат из свежих огурцов | F166: 60 | G166: 0.36 | H166: 4.26 | I166: 1.8 | J166: 46.98 | K166: 16 | L166: 8.15
D167: 1 блюдо | E167: Суп гороховый с мясом птицы | F167: 200 | G167: 10.16 | H167: 6.24 | I167: 16.08 | J167: 161.12 | K167: 139 | L167: 14.85
D168: 2 блюдо | E168: Тефтели мясные | F168: 80 | G168: 11.04 | H168: 13.12 | I168: 10.48 | J168: 204.16 | K168: 461 | L168: 45.48
D169: гарнир | E169: Пюре картофельное | F169: 150 | G169: 3.15 | H169: 6.75 | I169: 21.9 | J169: 160.95 | K169: 520 | L169: 11.46
D170: напиток | E170: Компот из сухофруктов | F170: 200 | G170: 0.6 | H170: 0 | I170: 31.4 | J170: 128 | K170: 639 | L170: 4.2
D171: хлеб бел. | E171: Хлеб витаминизированный | F171: 30 | G171: 2.28 | H171: 0.24 | I171: 14.5 | J171: 69.28 | K171: пром | L171: 2.58
D172: хлеб черн. | E172: Хлеб черный | F172: 20 | G172: 1.4 | H172: 0.21 | I172: 9.3 | J172: 44.69 | K172: пром | L172: 1.72
D175: итого | F175: =SUM(F166:F174) -> 740 | G175: =SUM(G166:G174) -> 28.99 | H175: 30.82 | I175: 105.46 | J175: 815.18 | L175: =SUM(L166:L174) -> 88.44
A176: =A158 -> 2 | B176: =B158 -> 4 | C176: Итого за день: | F176: =F165+F175 -> 1190 | G176: =G165+G175 -> 60.33 | H176: 65.16 | I176: 151.64 | J176: 1434.32 | L176: 165.69
A177: 2 | B177: 5 | C177: Завтрак | D177: гор.блюдо | E177: Картофель запеченый со сметаной | F177: 150 | G177: 4.35 | H177: 16.95 | I177: 33.15 | J177: 302.55 | K177: 228 | L177: 9.58
D179: гор.напиток | E179: Чай с лимоном | F179: 200 | G179: 0.3 | H179: 0 | I179: 15.2 | J179: 62 | K179: 686 | L179: 4.34
D180: хлеб | E180: Хлеб витаминизированный | F180: 30 | G180: 2.28 | H180: 0.24 | I180: 14.5 | J180: 69.28 | K180: пром | L180: 2.52
D181: фрукты | E181: Яблоко | F181: 100 | G181: 0.35 | H181: 0 | I181: 9.91 | J181: 41.04 | K181: пром | L181: 16
E182: Бутерброд с сыром | F182: 35 | G182: 5.2 | H182: 7.5 | I182: 7.3 | J182: 117.5 | K182: 3 | L182: 19.88
D184: итого | F184: =SUM(F177:F183) -> 515 | G184: =SUM(G177:G183) -> 12.48 | H184: 24.69 | I184: 80.06 | J184: 592.37 | L184: =SUM(L177:L183) -> 52.32
A185: =A177 -> 2 | B185: =B177 -> 5 | C185: Обед | D185: закуска
D186: 1 блюдо | E186: Борщ с мясом птицы со сметаной | F186: 200 | G186: 4.96 | H186: 5.84 | I186: 10.56 | J186: 114.64 | K186: 110 | L186: 17.22
D187: 2 блюдо | E187: Плов из птицы | F187: 200 | G187: 16.2 | H187: 15.8 | I187: 36.2 | J187: 351.8 | K187: 492 | L187: 49.25
D188: гарнир
D189: напиток | E189: Кисель из плодово-ягодного концентрата | F189: 200 | G189: 0 | H189: 0 | I189: 30.6 | J189: 122.4 | K189: 648 | L189: 6.43
D190: хлеб бел. | E190: Хлеб витаминизированный | F190: 30 | G190: 2.28 | H190: 0.24 | I190: 14.5 | J190: 69.28 | K190: пром | L190: 2.58
D191: хлеб черн. | E191: Хлеб черный | F191: 20 | G191: 1.4 | H191: 0.21 | I191: 9.3 | J191: 44.69 | K191: пром | L191: 1.72
D194: итого | F194: =SUM(F185:F193) -> 650 | G194: =SUM(G185:G193) -> 24.84 | H194: 22.09 | I194: 101.16 | J194: 702.81 | L194: =SUM(L185:L193) -> 77.2
A195: =A177 -> 2 | B195: =B177 -> 5 | C195: Итого за день: | F195: =F184+F194 -> 1165 | G195: =G184+G194 -> 37.32 | H195: 46.78 | I195: 181.22 | J195: 1295.18 | L195: 129.52
C196: Среднее значение за период: | F196: =(F24+F43+F62+F81+F100+F119+F138+F157+F176+F195)/(IF(F24=0,0,1)+IF(F43=0,0,1)+IF(F62=0,0,1)+IF(F81=0,0,1)+IF(F100=0,0,1)+IF(F119=0,0,1)+IF(F138=0,0,1)+IF(F157=0,0,1)+IF(F176=0,0,1)+IF(F195=0,0,1)) -> 1229.5 | G196: =(G24+G43+G62+G81+G100+G119+G138+G157+G176+G195)/(IF(G24=0,0,1)+IF(G43=0,0,1)+IF(G62=0,0,1)+IF(G81=0,0,1)+IF(G100=0,0,1)+IF(G119=0,0,1)+IF(G138=0,0,1)+IF(G157=0,0,1)+IF(G176=0,0,1)+IF(G195=0,0,1)) -> 53.05 | H196: 49.493 | I196: 187.753 | J196: 1393.596 | L196: =(L24+L43+L62+L81+L100+L119+L138+L157+L176+L195)/(IF(L24=0,0,1)+IF(L43=0,0,1)+IF(L62=0,0,1)+IF(L81=0,0,1)+IF(L100=0,0,1)+IF(L119=0,0,1)+IF(L138=0,0,1)+IF(L157=0,0,1)+IF(L176=0,0,1)+IF(L195=0,0,1)) -> 173.292
